[Event "Titled Tuesday Blitz February 15 Early 2022"]
[White "Sliwicki, Damian"]
[Black "Shuvalova, Polina"]
[WhiteFideId "1127128"]
[BlackFideId "24171760"]
[WhiteElo "2406"]
[BlackElo "2695"]
[Result "0-1"]
[Round "05"]
[TimeControl "180+1"]
[Date "2022.02.15"]
[WhiteClock "0:00:01"]
[BlackClock "0:00:17"]

1. e4 {[%clk 0:02:57]}  c6 {[%clk 0:02:54]} 2. Nc3 {[%clk 0:02:48]}  d5 {[%clk 0:02:54]} 3. Nf3 {[%clk 0:02:46]}  Bg4 {[%clk 0:02:53]} 4. h3 {[%clk 0:02:46]}  Bxf3 {[%clk 0:02:51]} 5. Qxf3 {[%clk 0:02:47]}  e6 {[%clk 0:02:50]} 6. d3 {[%clk 0:02:45]}  Bb4 {[%clk 0:02:46]} 7. Bd2 {[%clk 0:02:29]}  d4 {[%clk 0:02:43]} 8. Nb1 {[%clk 0:02:27]}  Qb6 {[%clk 0:02:43]} 9. Qg3 {[%clk 0:02:20]}  g6 {[%clk 0:02:38]} 10. Qe5 {[%clk 0:01:56]}  Bxd2+ {[%clk 0:02:28]} 11. Nxd2 {[%clk 0:01:55]}  Qxb2 {[%clk 0:02:29]} 12. Rb1 {[%clk 0:01:54]}  Qc3 {[%clk 0:02:08]} 13. Qxh8 {[%clk 0:01:50]}  Kf8 {[%clk 0:02:08]} 14. Rb6 {[%clk 0:01:39]}  axb6 {[%clk 0:01:53]} 15. Qe5 {[%clk 0:01:36]}  Qc5 {[%clk 0:01:45]} 16. Qc7 {[%clk 0:01:34]}  Qe7 {[%clk 0:01:42]} 17. Qe5 {[%clk 0:01:33]}  Nd7 {[%clk 0:01:42]} 18. Qxd4 {[%clk 0:01:33]}  Rxa2 {[%clk 0:01:41]} 19. Be2 {[%clk 0:01:32]}  e5 {[%clk 0:01:39]} 20. Qc3 {[%clk 0:01:26]}  Qa3 {[%clk 0:01:34]} 21. Nb3 {[%clk 0:01:18]}  Qb2 {[%clk 0:01:22]} 22. Qxb2 {[%clk 0:01:07]}  Rxb2 {[%clk 0:01:22]} 23. Kd2 {[%clk 0:01:08]}  Ra2 {[%clk 0:01:21]} 24. Rf1 {[%clk 0:01:00]}  Ke7 {[%clk 0:01:14]} 25. f4 {[%clk 0:00:58]}  Ngf6 {[%clk 0:01:13]} 26. fxe5 {[%clk 0:00:50]}  Nxe5 {[%clk 0:01:12]} 27. d4 {[%clk 0:00:47]}  Nxe4+ {[%clk 0:00:56]} 28. Ke3 {[%clk 0:00:29]}  Ng3 {[%clk 0:00:55]} 29. Re1 {[%clk 0:00:28]}  Nxe2 {[%clk 0:00:52]} 30. Rxe2 {[%clk 0:00:24]}  Nd7 {[%clk 0:00:49]} 31. Kd3+ {[%clk 0:00:22]}  Kd6 {[%clk 0:00:50]} 32. Nd2 {[%clk 0:00:21]}  b5 {[%clk 0:00:43]} 33. Ne4+ {[%clk 0:00:20]}  Kc7 {[%clk 0:00:44]} 34. Ng5 {[%clk 0:00:21]}  Ra3+ {[%clk 0:00:42]} 35. Kd2 {[%clk 0:00:19]}  f6 {[%clk 0:00:38]} 36. Nxh7 {[%clk 0:00:19]}  Rg3 {[%clk 0:00:38]} 37. Kc1 {[%clk 0:00:18]}  Kd6 {[%clk 0:00:36]} 38. Kb2 {[%clk 0:00:13]}  b4 {[%clk 0:00:32]} 39. Kb1 {[%clk 0:00:12]}  b5 {[%clk 0:00:32]} 40. Kb2 {[%clk 0:00:12]}  Ra3 {[%clk 0:00:23]} 41. Re8 {[%clk 0:00:08]}  Rg3 {[%clk 0:00:21]} 42. Re2 {[%clk 0:00:05]}  f5 {[%clk 0:00:20]} 43. Rf2 {[%clk 0:00:04]}  Kd5 {[%clk 0:00:20]} 44. Re2 {[%clk 0:00:04]}  Nb6 {[%clk 0:00:19]} 45. Nf6+ {[%clk 0:00:04]}  Kxd4 {[%clk 0:00:18]} 46. Rd2+ {[%clk 0:00:01]}  Kc5 {[%clk 0:00:17]} 0-1


[Site "https://www.chess.com"]

[Event "Titled Tuesday Blitz February 15 Early 2022"]
[White "Soderstrom, Adrian"]
[Black "Kalajzic, Ivan"]
[WhiteFideId "1745786"]
[BlackFideId "14506378"]
[WhiteElo "2107"]
[BlackElo "2163"]
[Result "0-1"]
[Round "05"]
[TimeControl "180+1"]
[Date "2022.02.15"]
[WhiteClock "0:00:11"]
[BlackClock "0:00:26"]

1. e4 {[%clk 0:03:00]}  Nc6 {[%clk 0:02:52]} 2. d4 {[%clk 0:02:57]}  e5 {[%clk 0:02:52]} 3. Nf3 {[%clk 0:02:54]}  exd4 {[%clk 0:02:51]} 4. Bc4 {[%clk 0:02:55]}  Be7 {[%clk 0:02:51]} 5. c3 {[%clk 0:02:54]}  Na5 {[%clk 0:02:50]} 6. Bd3 {[%clk 0:02:47]}  dxc3 {[%clk 0:02:49]} 7. O-O {[%clk 0:02:47]}  d6 {[%clk 0:02:49]} 8. Nxc3 {[%clk 0:02:46]}  Nf6 {[%clk 0:02:48]} 9. Qa4+ {[%clk 0:02:44]}  Nc6 {[%clk 0:02:39]} 10. e5 {[%clk 0:02:43]}  dxe5 {[%clk 0:02:39]} 11. Nxe5 {[%clk 0:02:43]}  Bd7 {[%clk 0:02:39]} 12. Nxd7 {[%clk 0:02:43]}  Qxd7 {[%clk 0:02:39]} 13. Rd1 {[%clk 0:02:43]}  O-O-O {[%clk 0:02:34]} 14. Bf4 {[%clk 0:02:35]}  Bd6 {[%clk 0:02:03]} 15. Bg5 {[%clk 0:02:27]}  Ne5 {[%clk 0:01:58]} 16. Qxd7+ {[%clk 0:02:23]}  Nexd7 {[%clk 0:01:52]} 17. Bf5 {[%clk 0:02:23]}  Kb8 {[%clk 0:01:48]} 18. Ne4 {[%clk 0:02:16]}  Be5 {[%clk 0:01:32]} 19. Rab1 {[%clk 0:01:43]}  Nb6 {[%clk 0:01:15]} 20. Nxf6 {[%clk 0:01:29]}  gxf6 {[%clk 0:01:12]} 21. Be3 {[%clk 0:01:28]}  Bxb2 {[%clk 0:01:08]} 22. Kf1 {[%clk 0:01:10]}  Nc4 {[%clk 0:01:00]} 23. Bh6 {[%clk 0:00:37]}  Rhe8 {[%clk 0:00:45]} 24. Bd3 {[%clk 0:00:36]}  b5 {[%clk 0:00:35]} 25. a4 {[%clk 0:00:35]}  a6 {[%clk 0:00:34]} 26. axb5 {[%clk 0:00:36]}  axb5 {[%clk 0:00:35]} 27. Be2 {[%clk 0:00:17]}  Rxd1+ {[%clk 0:00:34]} 28. Bxd1 {[%clk 0:00:18]}  Rd8 {[%clk 0:00:30]} 29. Be2 {[%clk 0:00:14]}  Nd2+ {[%clk 0:00:30]} 30. Bxd2 {[%clk 0:00:15]}  Rxd2 {[%clk 0:00:31]} 31. Bxb5 {[%clk 0:00:16]}  c5 {[%clk 0:00:30]} 32. Bc4 {[%clk 0:00:15]}  Kc7 {[%clk 0:00:29]} 33. Ke1 {[%clk 0:00:15]}  Bc3 {[%clk 0:00:29]} 34. Rb3 {[%clk 0:00:14]}  Rc2+ {[%clk 0:00:26]} 35. Kf1 {[%clk 0:00:11]}  Bd4 {[%clk 0:00:25]} 36. Be2 {[%clk 0:00:11]}  Rc1+ {[%clk 0:00:25]} 37. Bd1 {[%clk 0:00:12]}  Rxd1+ {[%clk 0:00:26]} 38. Ke2 {[%clk 0:00:13]}  Rc1 {[%clk 0:00:26]} 39. Rh3 {[%clk 0:00:13]}  Rc2+ {[%clk 0:00:26]} 40. Kd3 {[%clk 0:00:13]}  Rxf2 {[%clk 0:00:27]} 41. Rxh7 {[%clk 0:00:13]}  Kd6 {[%clk 0:00:27]} 42. Rxf7 {[%clk 0:00:13]}  Rxg2 {[%clk 0:00:27]} 43. h4 {[%clk 0:00:12]}  Rg3+ {[%clk 0:00:27]} 44. Kc4 {[%clk 0:00:12]}  Rc3+ {[%clk 0:00:27]} 45. Kb5 {[%clk 0:00:12]}  Ke6 {[%clk 0:00:27]} 46. Rf8 {[%clk 0:00:12]}  Rb3+ {[%clk 0:00:27]} 47. Kc4 {[%clk 0:00:12]}  Rh3 {[%clk 0:00:27]} 48. Rh8 {[%clk 0:00:12]}  Kf5 {[%clk 0:00:27]} 49. h5 {[%clk 0:00:10]}  Kg5 {[%clk 0:00:27]} 50. Rg8+ {[%clk 0:00:08]}  Kxh5 {[%clk 0:00:27]} 51. Kd5 {[%clk 0:00:09]}  Re3 {[%clk 0:00:25]} 52. Rg2 {[%clk 0:00:06]}  Re5+ {[%clk 0:00:25]} 53. Kc4 {[%clk 0:00:07]}  Rg5 {[%clk 0:00:25]} 54. Rh2+ {[%clk 0:00:06]}  Kg6 {[%clk 0:00:25]} 55. Kd3 {[%clk 0:00:06]}  f5 {[%clk 0:00:25]} 56. Ra2 {[%clk 0:00:05]}  Rg3+ {[%clk 0:00:25]} 57. Kc4 {[%clk 0:00:05]}  Kg5 {[%clk 0:00:26]} 58. Ra8 {[%clk 0:00:05]}  Kg4 {[%clk 0:00:26]} 59. Kd5 {[%clk 0:00:04]}  Re3 {[%clk 0:00:25]} 60. Rf8 {[%clk 0:00:02]}  f4 {[%clk 0:00:24]} 61. Rg8+ {[%clk 0:00:03]}  Kf3 {[%clk 0:00:24]} 62. Kc4 {[%clk 0:00:03]}  Kf2 {[%clk 0:00:24]} 63. Rf8 {[%clk 0:00:04]}  f3 {[%clk 0:00:24]} 64. Rg8 {[%clk 0:00:04]}  Ke2 {[%clk 0:00:24]} 65. Rf8 {[%clk 0:00:04]}  f2 {[%clk 0:00:25]} 66. Kd5 {[%clk 0:00:03]}  f1=Q {[%clk 0:00:24]} 67. Rxf1 {[%clk 0:00:04]}  Kxf1 {[%clk 0:00:25]} 68. Kc4 {[%clk 0:00:05]}  Ke2 {[%clk 0:00:25]} 69. Kd5 {[%clk 0:00:06]}  Kd3 {[%clk 0:00:24]} 70. Kc6 {[%clk 0:00:06]}  c4 {[%clk 0:00:24]} 71. Kd5 {[%clk 0:00:07]}  c3 {[%clk 0:00:25]} 72. Kc6 {[%clk 0:00:08]}  c2 {[%clk 0:00:25]} 73. Kd5 {[%clk 0:00:09]}  c1=Q {[%clk 0:00:25]} 74. Kd6 {[%clk 0:00:10]}  Qc5+ {[%clk 0:00:25]} 75. Kd7 {[%clk 0:00:10]}  Re7+ {[%clk 0:00:25]} 76. Kd8 {[%clk 0:00:11]}  Qc7# {[%clk 0:00:26]} 0-1


[Site "https://www.chess.com"]

[Event "Titled Tuesday Blitz February 15 Early 2022"]
[White "Srihari L R"]
[Black "Sarana, Alexey"]
[WhiteFideId "46617116"]
[BlackFideId "24133795"]
[WhiteElo "2121"]
[BlackElo "2665"]
[Result "0-1"]
[Round "05"]
[TimeControl "180+1"]
[Date "2022.02.15"]
[WhiteClock "0:00:04"]
[BlackClock "0:00:10"]

1. d4 {[%clk 0:03:00]}  Nf6 {[%clk 0:03:00]} 2. c4 {[%clk 0:03:00]}  e6 {[%clk 0:03:01]} 3. Nf3 {[%clk 0:02:57]}  d5 {[%clk 0:03:01]} 4. Nc3 {[%clk 0:02:57]}  Nbd7 {[%clk 0:03:01]} 5. Bg5 {[%clk 0:02:52]}  h6 {[%clk 0:03:00]} 6. Bh4 {[%clk 0:02:52]}  Be7 {[%clk 0:03:00]} 7. e3 {[%clk 0:02:50]}  Ne4 {[%clk 0:02:59]} 8. Bxe7 {[%clk 0:02:48]}  Qxe7 {[%clk 0:03:00]} 9. Nxe4 {[%clk 0:02:48]}  dxe4 {[%clk 0:03:01]} 10. Nd2 {[%clk 0:02:48]}  f5 {[%clk 0:02:59]} 11. Qh5+ {[%clk 0:02:43]}  Qf7 {[%clk 0:02:54]} 12. Qxf7+ {[%clk 0:02:43]}  Kxf7 {[%clk 0:02:55]} 13. f3 {[%clk 0:02:41]}  exf3 {[%clk 0:02:52]} 14. Nxf3 {[%clk 0:02:42]}  c5 {[%clk 0:02:52]} 15. Bd3 {[%clk 0:02:36]}  cxd4 {[%clk 0:02:52]} 16. exd4 {[%clk 0:02:35]}  Rd8 {[%clk 0:02:51]} 17. O-O-O {[%clk 0:02:31]}  b6 {[%clk 0:02:50]} 18. Rhe1 {[%clk 0:02:26]}  Bb7 {[%clk 0:02:42]} 19. d5 {[%clk 0:02:25]}  exd5 {[%clk 0:02:42]} 20. Bxf5 {[%clk 0:02:24]}  Kf6 {[%clk 0:02:07]} 21. Bxd7 {[%clk 0:01:55]}  Rxd7 {[%clk 0:02:08]} 22. Rd4 {[%clk 0:01:54]}  g5 {[%clk 0:01:59]} 23. Ne5 {[%clk 0:01:31]}  Rd6 {[%clk 0:01:46]} 24. Kb1 {[%clk 0:01:26]}  Rad8 {[%clk 0:01:33]} 25. Ng4+ {[%clk 0:01:25]}  Kg6 {[%clk 0:01:24]} 26. Red1 {[%clk 0:01:25]}  Re8 {[%clk 0:01:19]} 27. cxd5 {[%clk 0:01:19]}  h5 {[%clk 0:01:16]} 28. Nf2 {[%clk 0:01:12]}  Re2 {[%clk 0:01:17]} 29. Ne4 {[%clk 0:01:07]}  Rd7 {[%clk 0:01:01]} 30. h4 {[%clk 0:00:34]}  gxh4 {[%clk 0:00:47]} 31. Nc3 {[%clk 0:00:33]}  Rxg2 {[%clk 0:00:47]} 32. Rxh4 {[%clk 0:00:34]}  Rg4 {[%clk 0:00:47]} 33. Rh2 {[%clk 0:00:30]}  h4 {[%clk 0:00:47]} 34. Rdh1 {[%clk 0:00:29]}  Kg5 {[%clk 0:00:41]} 35. Re1 {[%clk 0:00:29]}  Rf7 {[%clk 0:00:29]} 36. d6 {[%clk 0:00:27]}  Bc6 {[%clk 0:00:28]} 37. Re7 {[%clk 0:00:26]}  Rxe7 {[%clk 0:00:14]} 38. dxe7 {[%clk 0:00:26]}  Be8 {[%clk 0:00:09]} 39. Nd5 {[%clk 0:00:20]}  Re4 {[%clk 0:00:07]} 40. Rg2+ {[%clk 0:00:20]}  Kf5 {[%clk 0:00:04]} 41. Rf2+ {[%clk 0:00:20]}  Ke6 {[%clk 0:00:03]} 42. Nf6 {[%clk 0:00:05]}  Re1+ {[%clk 0:00:03]} 43. Kc2 {[%clk 0:00:05]}  Bg6+ {[%clk 0:00:04]} 44. Kd2 {[%clk 0:00:06]}  Rb1 {[%clk 0:00:04]} 45. e8=Q+ {[%clk 0:00:03]}  Bxe8 {[%clk 0:00:05]} 46. Nxe8 {[%clk 0:00:03]}  Rxb2+ {[%clk 0:00:05]} 47. Ke3 {[%clk 0:00:04]}  Rb4 {[%clk 0:00:05]} 48. Ng7+ {[%clk 0:00:03]}  Kd5 {[%clk 0:00:05]} 49. Nf5 {[%clk 0:00:04]}  Ra4 {[%clk 0:00:05]} 50. Kf3 {[%clk 0:00:02]}  Ke5 {[%clk 0:00:05]} 51. Ne3 {[%clk 0:00:02]}  Rf4+ {[%clk 0:00:04]} 52. Kg2 {[%clk 0:00:01]}  h3+ {[%clk 0:00:04]} 53. Kg3 {[%clk 0:00:01]}  Rxf2 {[%clk 0:00:05]} 54. Kxf2 {[%clk 0:00:02]}  Kd4 {[%clk 0:00:06]} 55. Ng4 {[%clk 0:00:02]}  Kc3 {[%clk 0:00:06]} 56. Kg3 {[%clk 0:00:02]}  Kb2 {[%clk 0:00:06]} 57. Ne5 {[%clk 0:00:03]}  Kxa2 {[%clk 0:00:06]} 58. Kxh3 {[%clk 0:00:03]}  b5 {[%clk 0:00:06]} 59. Kg3 {[%clk 0:00:04]}  b4 {[%clk 0:00:06]} 60. Kf3 {[%clk 0:00:03]}  b3 {[%clk 0:00:07]} 61. Nd3 {[%clk 0:00:02]}  b2 {[%clk 0:00:07]} 62. Nxb2 {[%clk 0:00:02]}  Kxb2 {[%clk 0:00:08]} 63. Ke2 {[%clk 0:00:03]}  a5 {[%clk 0:00:09]} 64. Kd2 {[%clk 0:00:04]}  a4 {[%clk 0:00:10]} 0-1


[Site "https://www.chess.com"]

[Event "Titled Tuesday Blitz February 15 Early 2022"]
[White "Stepanencu, Nicodim-Cosmin"]
[Black "Ceres, Dragos"]
[WhiteFideId "1256220"]
[BlackFideId "13905864"]
[WhiteElo "1809"]
[BlackElo "2072"]
[Result "1-0"]
[Round "05"]
[TimeControl "180+1"]
[Date "2022.02.15"]
[WhiteClock "0:00:06"]
[BlackClock "0:00:15"]

1. b3 {[%clk 0:02:58]}  e5 {[%clk 0:02:57]} 2. Bb2 {[%clk 0:02:59]}  Nc6 {[%clk 0:02:57]} 3. e3 {[%clk 0:02:59]}  Nf6 {[%clk 0:02:55]} 4. Bb5 {[%clk 0:02:54]}  Bd6 {[%clk 0:02:53]} 5. Na3 {[%clk 0:02:55]}  Be7 {[%clk 0:02:53]} 6. Nc4 {[%clk 0:02:52]}  e4 {[%clk 0:02:50]} 7. Ne5 {[%clk 0:02:45]}  O-O {[%clk 0:02:44]} 8. d4 {[%clk 0:02:09]}  exd3 {[%clk 0:02:37]} 9. Bxd3 {[%clk 0:02:05]}  Bb4+ {[%clk 0:02:29]} 10. Kf1 {[%clk 0:01:52]}  Nxe5 {[%clk 0:02:18]} 11. Bxe5 {[%clk 0:01:53]}  Re8 {[%clk 0:02:13]} 12. Nf3 {[%clk 0:01:52]}  d5 {[%clk 0:02:09]} 13. h3 {[%clk 0:01:45]}  a5 {[%clk 0:01:57]} 14. c3 {[%clk 0:01:17]}  Ba3 {[%clk 0:01:46]} 15. Qc2 {[%clk 0:01:16]}  h6 {[%clk 0:01:39]} 16. Rd1 {[%clk 0:01:10]}  Nd7 {[%clk 0:01:31]} 17. Bf4 {[%clk 0:00:57]}  Nc5 {[%clk 0:01:29]} 18. Bh7+ {[%clk 0:00:40]}  Kh8 {[%clk 0:01:28]} 19. Ne5 {[%clk 0:00:22]}  Be6 {[%clk 0:01:22]} 20. Bf5 {[%clk 0:00:20]}  Qf6 {[%clk 0:01:13]} 21. Bxe6 {[%clk 0:00:14]}  Qxe6 {[%clk 0:01:13]} 22. f3 {[%clk 0:00:06]}  c6 {[%clk 0:01:11]} 23. Kf2 {[%clk 0:00:04]}  Re7 {[%clk 0:00:59]} 24. Rhe1 {[%clk 0:00:04]}  Rae8 {[%clk 0:00:59]} 25. Bg3 {[%clk 0:00:03]}  Na6 {[%clk 0:00:45]} 26. Ng4 {[%clk 0:00:03]}  h5 {[%clk 0:00:43]} 27. Ne5 {[%clk 0:00:02]}  Bd6 {[%clk 0:00:42]} 28. Nd3 {[%clk 0:00:06]}  Bxg3+ {[%clk 0:00:41]} 29. Kxg3 {[%clk 0:00:01]}  Qg6+ {[%clk 0:00:41]} 30. Kf2 {[%clk 0:00:02]}  Nc5 {[%clk 0:00:42]} 31. Rd2 {[%clk 0:00:01]}  Ne6 {[%clk 0:00:39]} 32. Ne5 {[%clk 0:00:01]}  Qf6 {[%clk 0:00:39]} 33. Nd3 {[%clk 0:00:01]}  Ng5 {[%clk 0:00:39]} 34. Nf4 {[%clk 0:00:02]}  h4 {[%clk 0:00:37]} 35. Rde2 {[%clk 0:00:02]}  Kg8 {[%clk 0:00:33]} 36. Qd3 {[%clk 0:00:02]}  b5 {[%clk 0:00:31]} 37. Qd4 {[%clk 0:00:03]}  Qxd4 {[%clk 0:00:28]} 38. cxd4 {[%clk 0:00:04]}  Ne6 {[%clk 0:00:26]} 39. Nxe6 {[%clk 0:00:03]}  Rxe6 {[%clk 0:00:26]} 40. Rc2 {[%clk 0:00:03]}  Kf8 {[%clk 0:00:26]} 41. Rc3 {[%clk 0:00:03]}  Ke7 {[%clk 0:00:26]} 42. Rec1 {[%clk 0:00:03]}  Kd7 {[%clk 0:00:26]} 43. a3 {[%clk 0:00:02]}  g5 {[%clk 0:00:24]} 44. b4 {[%clk 0:00:02]}  a4 {[%clk 0:00:24]} 45. R1c2 {[%clk 0:00:02]}  f5 {[%clk 0:00:23]} 46. Rd3 {[%clk 0:00:02]}  R8e7 {[%clk 0:00:23]} 47. Rdc3 {[%clk 0:00:02]}  Rf7 {[%clk 0:00:22]} 48. Re2 {[%clk 0:00:02]}  Rfe7 {[%clk 0:00:20]} 49. Rec2 {[%clk 0:00:01]}  Rg7 {[%clk 0:00:20]} 50. Re2 {[%clk 0:00:01]}  g4 {[%clk 0:00:20]} 51. fxg4 {[%clk 0:00:01]}  fxg4 {[%clk 0:00:20]} 52. e4 {[%clk 0:00:01]}  g3+ {[%clk 0:00:17]} 53. Kf3 {[%clk 0:00:01]}  dxe4+ {[%clk 0:00:16]} 54. Rxe4 {[%clk 0:00:01]}  Rf7+ {[%clk 0:00:17]} 55. Rf4 {[%clk 0:00:02]}  Rxf4+ {[%clk 0:00:17]} 56. Kxf4 {[%clk 0:00:02]}  Re2 {[%clk 0:00:17]} 57. Kg4 {[%clk 0:00:02]}  Rxg2 {[%clk 0:00:18]} 58. Kxh4 {[%clk 0:00:03]}  Rd2 {[%clk 0:00:15]} 59. Kxg3 {[%clk 0:00:03]}  Rxd4 {[%clk 0:00:15]} 60. h4 {[%clk 0:00:04]}  Rd6 {[%clk 0:00:13]} 61. h5 {[%clk 0:00:02]}  Ke7 {[%clk 0:00:14]} 62. Rf3 {[%clk 0:00:02]}  c5 {[%clk 0:00:12]} 63. bxc5 {[%clk 0:00:02]}  Rc6 {[%clk 0:00:13]} 64. Rf5 {[%clk 0:00:02]}  Ke6 {[%clk 0:00:13]} 65. Kg4 {[%clk 0:00:02]}  Ke7 {[%clk 0:00:12]} 66. Kg5 {[%clk 0:00:02]}  b4 {[%clk 0:00:12]} 67. axb4 {[%clk 0:00:02]}  a3 {[%clk 0:00:13]} 68. Rf2 {[%clk 0:00:02]}  Ra6 {[%clk 0:00:13]} 69. Ra2 {[%clk 0:00:02]}  Ra4 {[%clk 0:00:13]} 70. h6 {[%clk 0:00:02]}  Kf7 {[%clk 0:00:12]} 71. h7 {[%clk 0:00:01]}  Kg7 {[%clk 0:00:13]} 72. c6 {[%clk 0:00:02]}  Rxb4 {[%clk 0:00:11]} 73. Rh2 {[%clk 0:00:02]}  Rb5+ {[%clk 0:00:11]} 74. Kg4 {[%clk 0:00:02]}  Rb4+ {[%clk 0:00:11]} 75. Kf5 {[%clk 0:00:01]}  Rb8 {[%clk 0:00:11]} 76. Ke6 {[%clk 0:00:01]}  Rh8 {[%clk 0:00:09]} 77. c7 {[%clk 0:00:01]}  Rxh7 {[%clk 0:00:10]} 78. Rxh7+ {[%clk 0:00:02]}  Kxh7 {[%clk 0:00:11]} 79. c8=Q {[%clk 0:00:03]}  a2 {[%clk 0:00:12]} 80. Qc2+ {[%clk 0:00:03]}  Kg7 {[%clk 0:00:12]} 81. Qxa2 {[%clk 0:00:04]}  Kg8 {[%clk 0:00:13]} 82. Qe2 {[%clk 0:00:05]}  Kg7 {[%clk 0:00:14]} 83. Qe5+ {[%clk 0:00:06]}  Kh6 {[%clk 0:00:14]} 84. Qf4+ {[%clk 0:00:06]}  Kh7 {[%clk 0:00:15]} 85. Kf7 {[%clk 0:00:05]}  Kh8 {[%clk 0:00:15]} 86. Qh6# {[%clk 0:00:06]} 1-0


[Site "https://www.chess.com"]

[Event "Titled Tuesday Blitz February 15 Early 2022"]
[White "Ter-Sahakyan, Samvel"]
[Black "Orlov, Georgi"]
[WhiteFideId "13302531"]
[BlackFideId "2011271"]
[WhiteElo "2592"]
[BlackElo "2492"]
[Result "1-0"]
[Round "05"]
[TimeControl "180+1"]
[Date "2022.02.15"]
[WhiteClock "0:00:09"]
[BlackClock "0:00:08"]

1. d4 {[%clk 0:02:59]}  Nf6 {[%clk 0:02:58]} 2. c4 {[%clk 0:02:59]}  Nc6 {[%clk 0:02:56]} 3. Nc3 {[%clk 0:02:58]}  e5 {[%clk 0:02:56]} 4. d5 {[%clk 0:02:56]}  Ne7 {[%clk 0:02:56]} 5. e4 {[%clk 0:02:55]}  Ng6 {[%clk 0:02:54]} 6. a3 {[%clk 0:02:29]}  Bc5 {[%clk 0:02:52]} 7. h3 {[%clk 0:01:52]}  d6 {[%clk 0:02:43]} 8. Nf3 {[%clk 0:01:51]}  a6 {[%clk 0:02:33]} 9. g3 {[%clk 0:01:48]}  O-O {[%clk 0:02:14]} 10. Bg2 {[%clk 0:01:48]}  Ne8 {[%clk 0:02:06]} 11. Qe2 {[%clk 0:01:39]}  f5 {[%clk 0:02:04]} 12. exf5 {[%clk 0:01:33]}  Bxf5 {[%clk 0:02:03]} 13. Be3 {[%clk 0:01:33]}  Bxe3 {[%clk 0:01:49]} 14. Qxe3 {[%clk 0:01:34]}  Nf6 {[%clk 0:01:49]} 15. O-O {[%clk 0:01:33]}  Qc8 {[%clk 0:01:46]} 16. Kh2 {[%clk 0:01:33]}  h6 {[%clk 0:01:46]} 17. c5 {[%clk 0:01:30]}  Ne7 {[%clk 0:01:21]} 18. Rfd1 {[%clk 0:01:21]}  Bc2 {[%clk 0:01:19]} 19. Rd2 {[%clk 0:01:15]}  Nf5 {[%clk 0:01:17]} 20. Qe2 {[%clk 0:01:03]}  e4 {[%clk 0:01:10]} 21. Nd4 {[%clk 0:00:52]}  Bd3 {[%clk 0:00:59]} 22. Nxf5 {[%clk 0:00:40]}  Qxf5 {[%clk 0:00:59]} 23. Qe3 {[%clk 0:00:32]}  Nxd5 {[%clk 0:00:55]} 24. Nxd5 {[%clk 0:00:25]}  Qxd5 {[%clk 0:00:55]} 25. cxd6 {[%clk 0:00:24]}  cxd6 {[%clk 0:00:54]} 26. Rad1 {[%clk 0:00:20]}  Qf5 {[%clk 0:00:49]} 27. f3 {[%clk 0:00:17]}  d5 {[%clk 0:00:49]} 28. fxe4 {[%clk 0:00:17]}  dxe4 {[%clk 0:00:44]} 29. Re1 {[%clk 0:00:17]}  Rae8 {[%clk 0:00:42]} 30. Kg1 {[%clk 0:00:17]}  Qg6 {[%clk 0:00:26]} 31. Kh2 {[%clk 0:00:16]}  Kh8 {[%clk 0:00:24]} 32. Rf2 {[%clk 0:00:15]}  Rxf2 {[%clk 0:00:23]} 33. Qxf2 {[%clk 0:00:15]}  Qf6 {[%clk 0:00:23]} 34. Qxf6 {[%clk 0:00:11]}  gxf6 {[%clk 0:00:23]} 35. g4 {[%clk 0:00:11]}  b5 {[%clk 0:00:20]} 36. Kg3 {[%clk 0:00:11]}  e3 {[%clk 0:00:20]} 37. Bf3 {[%clk 0:00:08]}  Re5 {[%clk 0:00:19]} 38. Kf4 {[%clk 0:00:08]}  e2 {[%clk 0:00:18]} 39. Kg3 {[%clk 0:00:08]}  Kg7 {[%clk 0:00:18]} 40. Kf2 {[%clk 0:00:08]}  f5 {[%clk 0:00:18]} 41. Bxe2 {[%clk 0:00:06]}  Bxe2 {[%clk 0:00:17]} 42. Rxe2 {[%clk 0:00:06]}  Rxe2+ {[%clk 0:00:14]} 43. Kxe2 {[%clk 0:00:06]}  Kf6 {[%clk 0:00:14]} 44. Kf3 {[%clk 0:00:07]}  fxg4+ {[%clk 0:00:14]} 45. Kxg4 {[%clk 0:00:06]}  Kg6 {[%clk 0:00:13]} 46. h4 {[%clk 0:00:07]}  h5+ {[%clk 0:00:12]} 47. Kf4 {[%clk 0:00:07]}  Kf6 {[%clk 0:00:13]} 48. b4 {[%clk 0:00:07]}  Ke6 {[%clk 0:00:12]} 49. Kg5 {[%clk 0:00:08]}  Ke5 {[%clk 0:00:12]} 50. Kxh5 {[%clk 0:00:08]}  Kf5 {[%clk 0:00:12]} 51. Kh6 {[%clk 0:00:08]}  Kf6 {[%clk 0:00:13]} 52. h5 {[%clk 0:00:09]}  Kf5 {[%clk 0:00:08]} 53. Kg7 {[%clk 0:00:09]} 1-0


[Site "https://www.chess.com"]

[Event "Titled Tuesday Blitz February 15 Early 2022"]
[White "Terry, Renato"]
[Black "Deac, Bogdan-Daniel"]
[WhiteFideId "3803457"]
[BlackFideId "1226380"]
[WhiteElo "2577"]
[BlackElo "2646"]
[Result "1/2-1/2"]
[Round "05"]
[TimeControl "180+1"]
[Date "2022.02.15"]
[WhiteClock "0:00:03"]
[BlackClock "0:00:02"]

1. d4 {[%clk 0:03:00]}  Nf6 {[%clk 0:02:38]} 2. Nf3 {[%clk 0:03:00]}  d5 {[%clk 0:02:37]} 3. c4 {[%clk 0:02:57]}  e6 {[%clk 0:02:36]} 4. e3 {[%clk 0:02:58]}  g6 {[%clk 0:02:35]} 5. b3 {[%clk 0:02:56]}  Bg7 {[%clk 0:02:33]} 6. Ba3 {[%clk 0:02:54]}  Nc6 {[%clk 0:02:34]} 7. Nc3 {[%clk 0:02:50]}  Ne7 {[%clk 0:02:31]} 8. Bd3 {[%clk 0:02:46]}  O-O {[%clk 0:02:31]} 9. O-O {[%clk 0:02:46]}  Re8 {[%clk 0:02:31]} 10. Rc1 {[%clk 0:02:45]}  c6 {[%clk 0:02:24]} 11. Qe2 {[%clk 0:02:44]}  Nf5 {[%clk 0:02:21]} 12. Rfd1 {[%clk 0:02:40]}  Qa5 {[%clk 0:02:20]} 13. Qb2 {[%clk 0:02:32]}  a6 {[%clk 0:02:15]} 14. h3 {[%clk 0:01:59]}  Qd8 {[%clk 0:02:14]} 15. Ne5 {[%clk 0:01:46]}  Nd6 {[%clk 0:02:05]} 16. f4 {[%clk 0:01:34]}  Bf8 {[%clk 0:02:01]} 17. Rf1 {[%clk 0:01:24]}  Nd7 {[%clk 0:01:55]} 18. g4 {[%clk 0:01:03]}  Qa5 {[%clk 0:01:49]} 19. b4 {[%clk 0:00:54]}  Qd8 {[%clk 0:01:48]} 20. c5 {[%clk 0:00:54]}  Nb5 {[%clk 0:01:47]} 21. g5 {[%clk 0:00:43]}  Nxe5 {[%clk 0:00:59]} 22. dxe5 {[%clk 0:00:43]}  Nxa3 {[%clk 0:00:59]} 23. Qxa3 {[%clk 0:00:43]}  a5 {[%clk 0:01:00]} 24. b5 {[%clk 0:00:43]}  b6 {[%clk 0:01:00]} 25. Na4 {[%clk 0:00:43]}  bxc5 {[%clk 0:00:55]} 26. Nxc5 {[%clk 0:00:43]}  Bd7 {[%clk 0:00:40]} 27. bxc6 {[%clk 0:00:29]}  Bxc6 {[%clk 0:00:39]} 28. Qc3 {[%clk 0:00:30]}  Rc8 {[%clk 0:00:30]} 29. Nb3 {[%clk 0:00:26]}  Ba4 {[%clk 0:00:26]} 30. Qxa5 {[%clk 0:00:21]}  Qxa5 {[%clk 0:00:15]} 31. Nxa5 {[%clk 0:00:22]}  Bb4 {[%clk 0:00:14]} 32. Nb3 {[%clk 0:00:13]}  Bxb3 {[%clk 0:00:14]} 33. axb3 {[%clk 0:00:09]}  Bd2 {[%clk 0:00:13]} 34. Rxc8 {[%clk 0:00:09]}  Bxe3+ {[%clk 0:00:13]} 35. Kg2 {[%clk 0:00:09]}  Rxc8 {[%clk 0:00:14]} 36. Kf3 {[%clk 0:00:08]}  Bd2 {[%clk 0:00:12]} 37. Rd1 {[%clk 0:00:08]}  Bb4 {[%clk 0:00:11]} 38. Ke2 {[%clk 0:00:06]}  Rc3 {[%clk 0:00:11]} 39. Rb1 {[%clk 0:00:07]}  h5 {[%clk 0:00:10]} 40. Rb2 {[%clk 0:00:05]}  h4 {[%clk 0:00:08]} 41. Rb1 {[%clk 0:00:05]}  Kf8 {[%clk 0:00:08]} 42. Ke3 {[%clk 0:00:04]}  Ke7 {[%clk 0:00:06]} 43. Ke2 {[%clk 0:00:04]}  Kd7 {[%clk 0:00:06]} 44. Ra1 {[%clk 0:00:02]}  Ke7 {[%clk 0:00:02]} 45. Rb1 {[%clk 0:00:02]}  Kf8 {[%clk 0:00:02]} 46. Ke3 {[%clk 0:00:02]}  Ke7 {[%clk 0:00:02]} 47. Ke2 {[%clk 0:00:03]} 1/2-1/2


[Site "https://www.chess.com"]